{"text_format":"1","workbook":"xlsx","n_sheets":2,"sheets":["Arkusz4","Niestacjonarne"],"not_rendered":{"charts":0,"images":0,"macros":0,"external_links":0,"defined_names":1,"comments":0,"pivot_tables":0},"unopened":[],"bounds":{"document_bytes":16777216,"sheet_cells":100000,"rows_first":2000,"rows_last":500,"rows_between":2000,"halvings":0,"cell_chars":16384,"cell_head_chars":4096},"cells_cut":0,"cells_raw":0,"read":"whole","date_system":"1900"}

{"sheet":"Arkusz4","index":0,"n_rows":0,"n_cols":0,"rows_kept":0,"cut":false,"hidden":true,"merged":[]}

{"sheet":"Niestacjonarne","index":1,"n_rows":46,"n_cols":28,"rows_kept":46,"cut":false,"hidden":false,"merged":[[1,0,3,0],[1,1,3,1],[1,2,3,2],[1,3,3,3],[1,4,3,4],[1,5,3,5],[36,5,36,7],[36,8,36,11],[36,13,36,16],[36,18,36,21],[1,6,3,6],[1,7,3,7],[1,8,1,17],[1,18,1,27],[2,8,2,12],[2,13,2,17],[2,18,2,22],[2,23,2,27],[36,23,36,26],[39,2,39,9],[39,10,39,18],[39,19,39,27],[42,2,42,9],[42,10,42,18],[42,19,42,27],[40,2,40,9],[40,10,40,18],[40,19,40,27],[41,2,41,9],[41,10,41,18],[41,19,41,27],[45,2,45,9],[45,10,45,18],[45,19,45,27],[43,2,43,9],[43,10,43,18],[43,19,43,27],[44,2,44,9],[44,10,44,18],[44,19,44,27]]}
["kierunek: LOGISTYKA MGR  (niestacjonarne) 2023/2024"]
["L.P.","PRZEDMIOT","ŁĄCZNA LICZBA GODZIN","PK","E/Z","W","Ć/K","P/L","ROK I",null,null,null,null,null,null,null,null,null,"ROK II"]
[null,null,null,null,null,null,null,null,"SEMESTR 1",null,null,null,null,"SEMESTR 2",null,null,null,null,"SEMESTR 3",null,null,null,null,"SEMESTR 4"]
[null,null,null,null,null,null,null,null,"W","Ć/K","P/L","R","PK","W","Ć/K","P/L","R","PK","W","Ć/K","P/L","R","PK","W","Ć/K","P/L","R","PK"]
["I","MODUŁ OGÓLNY",{"$f":"SUM(C6:C9)","v":91},{"$f":"SUM(D6:D9)","v":14},0,35,28,28,35,28,28,91,14,0,0,0,0,0,0,0,0,0,0,0,0,0,0,0]
[1,"Zarządzanie wiedzą w organizacji",14,2,"Z",null,14,null,null,14,null,14,2]
[2,"Metodyka i podstawy badań naukowych",28,4,"E",14,null,14,14,null,14,28,4]
[3,"Statystyka i ekonometria",21,4,"Z",7,null,14,7,null,14,21,4]
[4,"Prawo cywilne i gospodarcze",28,4,"Z",14,14,null,14,14,null,28,4]
["II.","MODUŁ PODSTAWOWY",{"$f":"SUM(C11:C25)","v":378},48,0,105,49,224,35,14,49,91,16,35,21,70,126,14,14,14,49,77,8,21,0,56,77,10]
[5,"Zarządzanie strategiczne",28,4,"E",14,null,14,14,null,14,28,4]
[6,"Zarządzanie logistyczne",28,4,"E",7,7,14,7,7,14,28,4]
[7,"Makroekonomia",21,4,"Z",7,7,7,7,7,7,14,4]
[8,"Pozyskiwanie i analiza danych logistycznych",21,4,"Z",7,null,14,7,null,14,21,4]
[9,"Globalizacja gospodarcza",14,2,"Z",7,null,7,null,null,null,null,null,7,null,7,14,2]
[10,"Nowoczesne strategie logistyczne",28,3,"E",7,7,14,null,null,null,null,null,7,7,14,28,3]
[11,"Współczesne rachunki kosztów w logistyce",28,3,"Z",7,null,21,null,null,null,null,null,7,null,21,28,3]
[12,"Globalne zarządzanie łańcuchami dostaw",28,3,"E",7,7,14,null,null,null,null,null,7,7,14,28,3]
[13,"Badania operacyjne i teoria optymalizacji",28,3,"E",7,7,14,null,null,null,null,null,7,7,14,28,3]
[14,"Etyka w biznesie",21,2,"Z",7,14,null,null,null,null,null,null,null,null,null,null,null,7,14,null,21,2]
[15,"Zarządzanie logistyką odwrotną",28,3,"E",7,null,21,null,null,null,null,null,null,null,null,null,null,7,null,21,28,3]
[16,"Zaawansowane systemy informatyczne w logistyce",28,3,"Z",null,null,28,null,null,null,null,null,null,null,null,null,null,null,null,28,28,3]
[17,"Systemy Business Intelligence w logistyce",21,3,"E",7,null,14,null,null,null,null,null,null,null,null,null,null,null,null,null,null,null,7,null,14,21,3]
[18,"Współczesne technologie automatyzacji obiektów logistycznych",28,3,"Z",14,null,14,null,null,null,null,null,null,null,null,null,null,null,null,null,null,null,14,null,14,28,3]
[19,"Systemy ERP w procesach logistycznych",28,4,"E",null,null,28,null,null,null,null,null,null,null,null,null,null,null,null,null,null,null,null,null,28,28,4]
["III.","MODUŁ WYBORU OGRANICZONEGO",{"$f":"SUM(C27:C29)","v":80},16,0,0,68,75,0,0,0,0,0,{"$f":"SUM(N27:N29)","v":0},{"$f":"SUM(O27:O29)","v":24},{"$f":"SUM(P27:P29)","v":8},{"$f":"SUM(Q27:Q29)","v":32},{"$f":"SUM(R27:R29)","v":4},0,16,16,32,4,0,0,16,16,8]
[20,"Język obcy",32,4,"Z",null,60,null,null,null,null,null,null,null,16,null,16,2,null,16,null,16,2]
[21,"Seminarium magisterskie",40,11,"Z",null,null,75,null,null,null,null,null,null,null,8,8,1,null,null,16,16,2,null,null,16,16,8]
[22,"Konwersatorium w języku obcym",8,1,"Z",null,8,null,null,null,null,null,null,null,8,null,8,1]
["IV.","MODUŁ WYBORU POSZERZONYCH KOMPETEMCJI - zajęcia praktyczne",{"$f":"SUM(C31:C36)","v":240},24,0,0,120,120,0,0,0,0,0,0,0,0,0,0,0,60,60,120,12,0,60,60,120,12]
[23,"Przedmiot 1",40,4,"Z",null,20,20,null,null,null,null,null,null,null,null,null,null,null,20,20,40,4]
[24,"Przedmiot 2",40,4,"Z",null,20,20,null,null,null,null,null,null,null,null,null,null,null,20,20,40,4]
[25,"Przedmiot 3",40,4,"Z",null,20,20,null,null,null,null,null,null,null,null,null,null,null,20,20,40,4]
[26,"Przedmiot 4",40,4,"Z",null,20,20,null,null,null,null,null,null,null,null,null,null,null,null,null,null,null,null,20,20,40,4]
[27,"Przedmiot 5",40,4,"Z",null,20,20,null,null,null,null,null,null,null,null,null,null,null,null,null,null,null,null,20,20,40,4]
[28,"Przedmiot 6",40,4,"Z",null,20,20,null,null,null,null,null,null,null,null,null,null,null,null,null,null,null,null,20,20,40,4]
["V.","PRAKTYKI ZAWODOWE (3 miesiące)",null,18,"Z",null,null,null,null,null,null,null,null,"2 miesiące",null,null,null,12,"1 miesiąc",null,null,null,6]
[null,"RAZEM ",{"$f":"SUM(C5,C10,C26,C30,C37)","v":789},120,0,140,265,447,70,42,77,182,30,35,45,78,158,30,14,90,125,229,30,21,60,132,213,30]
[]
["IV.","MODUŁ WYBORU POSZERZONYCH KOMPETEMCJI - zajęcia praktyczne","A",null,null,null,null,null,null,null,"B",null,null,null,null,null,null,null,null,"C"]
[23,"Przedmiot 1","Ocena systemów logistycznych",null,null,null,null,null,null,null,"Systemy mobilne w komunikacji logistycznej",null,null,null,null,null,null,null,null,"Wprowadzenie do teorii i praktyki logistyki wojskowej"]
[24,"Przedmiot 2","Optymalizacja procesów transportowych",null,null,null,null,null,null,null,"Gospodarka przestrzenna w logistyce",null,null,null,null,null,null,null,null,"Uzbrojenie i sprzęt oraz potrzeby logistyczne wojska"]
[25,"Przedmiot 3","Zarządzanie zasobami informacyjnymi logistyki",null,null,null,null,null,null,null,"Zarządzanie logistyką zwrotną",null,null,null,null,null,null,null,null,"Logistyka wojsk lądowych"]
[26,"Przedmiot 4","E-logistyka",null,null,null,null,null,null,null,"Zarządzanie logistyką miejską",null,null,null,null,null,null,null,null,"Logistyka wojsk powietrznych"]
[27,"Przedmiot 5","Benchmarking w logistyce",null,null,null,null,null,null,null,"Logistyka w sytuacjach kryzysowych",null,null,null,null,null,null,null,null,"Logistyka marynarki wojennej"]
[28,"Przedmiot 6","Ryzyko w systemach logistycznych",null,null,null,null,null,null,null,"Logistyka społeczna i humanitarna",null,null,null,null,null,null,null,null,"Zarządzanie logistyczne w sytuacjach kryzysowych"]